Cogmind - Beta 14 @@@ ROGUE MODE // 2025.03.20 @ 00:10:56 Player: k1ll3rb0t Result: Destroyed by Y-54 Guardian with Gatling Laser Performance ------------- Evolutions (4) 2000 Regions Visited (12) 2400 Robots Destroyed (145) 725 Value Destroyed (6036) 6036 Prototype IDs (6) 120 Alien Tech Used (0) 0 Bonus (1093) 1093 TOTAL SCORE: 12374 Bonus ------- High Alert Combat Kills 380 Follower Combat Kills 165 Entered Garrisons 200 Entered DSFs 500 Friendly Fire -152 Cogmind --------- Core Integrity 0/850 Matter 204/300 Energy 18/100 System Corruption 21% Temperature Cool (6) Movement Core (300) Ox5 Location -6/Hub_04(d) Parts ------- > --- POWER (1) -------- (None) > --- PROPULSION (5) --- (None) > --- UTILITY (6) ------ Improved Heat Sink Improved Signal Interpreter Improved Terrain Scanner Improved Target Analyzer Graphene Brace (fused) Improved System Shield > --- WEAPON (3) ------- Gatling Laser Gatling Laser KE Penetrator > --- INVENTORY (5) ---- Advanced Sensor Array Weapon Cycler Peak State ------------ > --- POWER ------------ Improved Deuterium Engine > --- PROPULSION ------- Armored Treads Medium Treads Medium Treads Improved Medium Treads Improved Medium Treads > --- UTILITY ---------- Advanced Heat Sink Huge Storage Unit Advanced Sensor Array Improved Signal Interpreter Improved Target Analyzer Graphene Brace > --- WEAPON ----------- Gatling Laser Heavy Ion Cannon Flak Gun > --- INVENTORY -------- Light Angular Momentum Engine Improved Heat Sink Improved Heat Sink Improved Cooling System Huge Storage Unit High-capacity Matter Pod Advanced Sensor Array Improved Signal Interpreter Targeting Computer Weapon Cycler Hardened Medium Armor Plating Hardened Medium Armor Plating Improved Light Armor Plating Hacking Suite Improved System Shield Heavy Plasma Cannon Heavy Machine Gun Grenade Launcher Rocket Launcher Plasma Cutter Heavy Mace [Rating: 69] Favorites ----------- Power Angular Momentum Engine Engine Angular Momentum Engine Power Core Light Nuclear Core Propulsion Light Treads Treads Light Treads Leg Carbon-fiber Leg Utility Hacking Suite Device Advanced Heat Sink Storage Huge Storage Unit Processor Improved Signal Interpreter Hackware Hacking Suite Protection Hardened Medium Armor Plating Weapon Heavy Laser Energy Gun Heavy Laser Energy Cannon Heavy Ion Cannon Ballistic Gun Heavy Machine Gun Ballistic Cannon Improved Light Cannon Launcher Grenade Launcher Special Weapon Plasma Cutter Impact Weapon Heavy Mace Slashing Weapon Mining Claw Build | -11 -10 -10 -9 -8 -7 -7 -7 -6 -6 -6 -6 -6 ------- Run | Yrd Mat Min Mat Mat Fac DSF Gar Fac Ext Cet Arc Hub Slots Evolved 8 | . . . 2 2 2 . . 2 . . . . Power . | . . . . . . . . . . . . . Propulsion 3 | . . . 1 1 1 . . . . . . . Utility 4 | . . . 1 1 1 . . 1 . . . . Weapon 1 | . . . . . . . . 1 . . . . Parts Attached 218 | 6 7 3 34 36 4 21 19 16 33 28 4 7 Power 15 | 1 1 . 3 3 . 1 2 1 1 2 . . Engine 13 | 1 1 . 3 1 . 1 2 1 1 2 . . Core 2 | . . . . 2 . . . . . . . . Reactor . | . . . . . . . . . . . . . Propulsion 43 | 2 . 1 7 8 1 8 5 3 6 2 . . Treads 41 | 2 . 1 7 8 1 8 5 3 6 . . . Leg 2 | . . . . . . . . . . 2 . . Wheel . | . . . . . . . . . . . . . Hover . | . . . . . . . . . . . . . Flight . | . . . . . . . . . . . . . Utility 83 | 1 4 2 14 9 3 4 6 6 14 13 3 4 Device 34 | . 1 1 4 1 1 2 3 2 8 4 3 4 Storage 4 | 1 2 . 1 . . . . . . . . . Processor 5 | . . . 1 1 . . . 1 . 2 . . Hackware 9 | . . . . 3 1 . 1 1 1 2 . . Protection 31 | . 1 1 8 4 1 2 2 2 5 5 . . Artifact . | . . . . . . . . . . . . . Weapon 77 | 2 2 . 10 16 . 8 6 6 12 11 1 3 Energy Gun 10 | . . . 3 1 . . 2 . 2 . . 2 Energy Cannon 4 | . . . . . . . . . 1 3 . . Ballistic Gun 36 | 2 2 . 3 11 . 4 2 4 4 2 1 1 Ballistic Cannon 3 | . . . 1 . . . . 1 1 . . . Launcher 15 | . . . 2 3 . 2 2 1 2 3 . . Special Weapon 3 | . . . . . . . . . 2 1 . . Impact Weapon 2 | . . . . . . . . . . 2 . . Slashing Weapon 4 | . . . 1 1 . 2 . . . . . . Piercing Weapon . | . . . . . . . . . . . . . Special Melee Weapon . | . . . . . . . . . . . . . Unidentified Prototypes . | . . . . . . . . . . . . . Corrupted Parts 2 | . . . . . . . . . 1 . 1 . System Corruption 20 | . . . . . . . . . 13 . 7 . Parts Lost 63 | . . 2 7 9 . 4 2 . 13 22 4 . Power 3 | . . . . . . . . . 1 2 . . Propulsion 24 | . . 1 1 5 . 3 1 . 6 6 1 . Utility 20 | . . 1 5 1 . 1 1 . 3 6 2 . Weapon 16 | . . . 1 3 . . . . 3 8 1 . Highest Loss Streak 9 | . . 2 3 5 . 2 1 . 7 9 2 . To Critical Strikes . | . . . . . . . . . . . . . Average Slot Usage (%) 94 | . 97 98 97 98 100 96 99 99 99 65 48 40 Engine 6 | . 14 14 10 3 . 3 7 6 6 5 . . Core 1 | . . . . 5 7 3 . . . . . . Treads 29 | . 28 26 32 35 38 34 37 32 32 5 . . Device 8 | . 8 8 11 . 7 2 7 11 9 15 12 19 Storage 7 | . 14 14 11 9 7 7 7 6 6 3 . . Processor 8 | . . . 1 9 7 7 7 13 13 9 20 13 Hackware 5 | . . . . 15 13 7 8 6 5 3 6 6 Protection 4 | . 3 5 7 2 1 12 5 1 3 4 . . Energy Gun 3 | . . . 3 1 . . 7 6 4 . . . Ballistic Gun 9 | . 28 28 9 9 15 11 5 8 6 1 1 . Ballistic Cannon 2 | . . . 8 5 . . . 2 4 . . . Peak Build Rating 69 | 6 8 9 15 28 30 45 52 66 69 67 32 40 Average Rating 36 | 4 7 8 13 23 29 35 48 62 60 42 29 30 On Entrance 28 | . 6 8 9 13 28 30 44 52 58 67 28 25 Naked Turns . | . . . . . . . . . . . . . Heaviest Build 121 | 12 30 30 94 99 100 117 112 117 118 121 7 3 Greatest Support 136 | 40 40 40 60 80 100 108 124 116 136 136 15 3 Greatest Overweight (x) 4 | 1 . 1 1 1 . 1 . 1 1 4 2 . Average Overweight (x) . | . . . . 1 . . . . . . . . Largest Inventory Capacity 25 | 8 15 15 25 25 25 25 25 25 25 25 5 5 Average Capacity 21 | 7 11 15 18 25 25 25 25 25 25 16 5 5 Most Carried 25 | 7 15 15 20 25 25 25 25 25 25 20 3 5 Average Carried 19 | 5 11 14 16 23 24 23 24 24 23 11 1 4 Final Capacity 25 | 8 15 15 25 25 25 25 25 25 25 5 5 5 Final Carried 25 | 7 15 15 20 25 24 25 25 25 20 3 2 2 Class Distribution -------------------- 44% | Scavenger-Mutant 22% | Mutant 8% | Scavenger-Gunner 7% | Scavenger-Skirmisher 5% | Skirmisher 4% | Scavenger-Tank 3% | Gunner Dominant Class ---------------- Mutant | -10/Materials Scavenger-Mutant | -10/Mines Scavenger-Mutant | -9/Materials Scavenger-Mutant | -8/Materials Scavenger-Mutant | -7/Factory Scavenger-Mutant | -7/DSF Mutant | -7/Garrison Skirmisher | -6/Factory Scavenger-Gunner | -6/Extension Scavenger-Mutant | -6/Cetus Scavenger-Mutant | -6/Archives Scout | -6/Hub_04(d) Resources | -11 -10 -10 -9 -8 -7 -7 -7 -6 -6 -6 -6 -6 ----------- Run | Yrd Mat Min Mat Mat Fac DSF Gar Fac Ext Cet Arc Hub Matter Collected 5119 | 282 146 54 687 571 . 959 646 208 1038 451 77 . Remotely . | . . . . . . . . . . . . . Salvage Created 5186 | 137 390 76 841 784 . 890 782 124 760 199 176 27 Parts 271 | 6 26 5 77 55 . 21 34 8 29 5 2 3 Haulers Intercepted 1 | . 1 . . . . . . . . . . . Recyclers Shooed 7 | . . . 1 . . . . . 6 . . . Parts Field Recycled . | . . . . . . . . . . . . . Retrieved Matter . | . . . . . . . . . . . . . Parts Self-Destructed . | . . . . . . . . . . . . . Prevented . | . . . . . . . . . . . . . Kills | -11 -10 -10 -9 -8 -7 -7 -7 -6 -6 -6 -6 -6 ------- Run | Yrd Mat Min Mat Mat Fac DSF Gar Fac Ext Cet Arc Hub Combat Hostiles Destroyed 120 | . 13 2 24 23 . 8 24 3 14 7 2 . Melee 1 | . . . . . . . . . . 1 . . Guns 63 | . 13 2 10 14 . 7 9 1 5 1 1 . Cannons 21 | . . . 9 5 . . . 1 3 3 . . AOE 31 | . . . 5 4 . 1 13 1 6 1 . . Classes Destroyed 16 | 2 3 . 4 2 . 3 1 . 1 . . . Worker 4 | . . . 1 1 . . . 1 . . . 1 Builder 6 | . . . . 5 . . . . 1 . . . Tunneler 2 | 2 . . . . . . . . . . . . Hauler 1 | . 1 . . . . . . . . . . . Recycler 3 | 1 1 . . . . . . . 1 . . . Operator 3 | . . . 1 . . . . . 1 . 1 . Watcher 5 | . . . 4 . . . . . . 1 . . Swarmer 33 | . 9 . 6 6 . 2 7 1 2 . . . Grunt 51 | . 4 2 9 14 . 2 10 . 7 3 . . Brawler 2 | . . . . . . . 2 . . . . . Sentry 17 | . . . 9 2 . . 1 1 2 . 2 . Specialist 3 | . . . . . . 2 1 . . . . . Hunter 4 | . . . . 1 . . 1 . 2 . . . Programmer 4 | . . . . . . 1 2 1 . . . . Heavy 1 | . . . . . . 1 . . . . . . Behemoth 2 | . . . . . . . . . 2 . . . Cetus Guard 4 | . . . . . . . . . . 4 . . Best Kill Streak 9 | 2 5 1 4 9 . 3 9 1 4 4 2 1 Combat Bots Only 9 | . 5 1 3 5 . 3 9 1 3 4 1 . Max Kills in Single Turn 4 | 1 1 1 3 2 . 1 4 1 2 1 1 1 Gunslinging . | . . . . . . . . . . . . . Exploded 4 | . . . 2 2 . 1 4 1 2 1 . . Melee 1 | . . . . . . . . . . 1 . . Uniques/NPCs Destroyed . | . . . . . . . . . . . . . Combat | -11 -10 -10 -9 -8 -7 -7 -7 -6 -6 -6 -6 -6 -------- Run | Yrd Mat Min Mat Mat Fac DSF Gar Fac Ext Cet Arc Hub Hostile Shots Fired 1198 | . 64 28 146 186 . 86 165 71 212 168 39 33 Missed 393 | . 16 4 50 53 . 27 78 21 62 53 14 15 Damage Taken 13077 | . 427 345 1272 1862 . 1234 1383 447 2644 2723 586 154 Core 1601 | . 71 61 177 291 . 92 56 28 157 251 352 65 Absorbed by Shields . | . . . . . . . . . . . . . Regen/Repaired (Parts) 275 | . . . . . . . . 275 . . . . Core Remaining (%) 65 | 100 . 47 55 47 . . 78 . . . . . Volleys Fired 448 | 11 38 14 86 68 . 38 84 14 55 28 8 4 Largest 3 | 2 2 2 2 2 . 2 2 3 3 3 1 2 Hottest 198 | 40 40 40 95 79 . 55 99 147 178 198 33 113 Shots Fired 871 | 22 76 28 161 132 . 75 131 29 143 61 8 5 Gun 640 | 22 76 28 111 84 . 70 104 19 84 29 8 5 Cannon 162 | . . . 43 37 . . . 8 51 23 . . Launcher 69 | . . . 7 11 . 5 27 2 8 9 . . Special . | . . . . . . . . . . . . . Kinetic 591 | 22 76 28 111 100 . 70 42 19 93 18 8 4 Thermal 211 | . . . 43 21 . . 62 8 42 34 . 1 Explosive 69 | . . . 7 11 . 5 27 2 8 9 . . Electromagnetic . | . . . . . . . . . . . . . Robot Hit Streak 22 | 8 8 8 22 9 . 11 15 7 17 11 11 15 Robot Miss Streak 7 | 3 7 3 5 2 . 2 3 2 3 4 . 2 Penetration Max 1 | . . . . . . . . . . . . 1 Secondary Targets 5 | . 1 . 1 1 . 1 1 . . . . . Max Gunslinging Chain 1 | . 1 . 1 1 . 1 1 . . . . . Shots Hit Robots 604 | 16 46 21 111 85 . 57 76 16 103 50 18 5 Core Hits 320 | 6 26 7 49 51 . 20 45 9 46 53 5 3 Critical Kills 1 | . . . . 1 . . . . . . . . Critical Parts Destroyed 9 | . . 1 1 . . . 1 . 2 1 3 . Critical Strikes 23 | . . 1 2 2 . . 4 2 8 1 3 . Burn 9 | . . . 1 1 . . 3 1 3 . . . Destroy 8 | . . 1 1 1 . . 1 1 2 . 1 . Blast 3 | . . . . . . . . . 3 . . . Smash 3 | . . . . . . . . . . 1 2 . Melee Attacks 57 | . . . 2 9 . 27 . . . 5 14 . Impact 19 | . . . . . . . . . . 5 14 . Slashing 38 | . . . 2 9 . 27 . . . . . . Piercing . | . . . . . . . . . . . . . Sneak Attacks 1 | . . . . . . . . . . . 1 . Combat Hostiles . | . . . . . . . . . . . . . Follow-up Attacks . | . . . . . . . . . . . . . Damage Inflicted 14871 | 140 390 172 1944 2155 . 981 2775 515 3238 1837 561 163 Guns 7344 | 140 390 172 1022 800 . 881 1320 294 1350 625 187 163 Cannons 2687 | . . . 502 550 . . . 90 1044 501 . . Explosions 4272 | . . . 408 770 . 100 1455 107 844 588 . . Melee 497 | . . . . . . . . . . 123 374 . Ramming 71 | . . . 12 35 . . . 24 . . . . Kinetic 6958 | 140 390 172 1059 1194 . 881 517 285 1645 347 187 141 Thermal 3073 | . . . 465 156 . . 803 99 749 779 . 22 Explosive 4272 | . . . 408 770 . 100 1455 107 844 588 . . Electromagnetic . | . . . . . . . . . . . . . Impact 497 | . . . . . . . . . . 123 374 . Slashing . | . . . . . . . . . . . . . Piercing . | . . . . . . . . . . . . . Highest Corruption 21 | . 1 1 1 . . 1 3 1 14 14 21 21 Average Corruption 4 | . 1 1 1 . . 1 2 1 2 14 16 21 Corruption Purged . | . . . . . . . . . . . . . Corruption Blocked . | . . . . . . . . . . . . . Effects 99 | . . 1 9 . . 2 28 6 17 25 6 5 Message Errors 27 | . . . 1 . . 1 9 . 4 7 2 3 Matter Fused 22 | . . 1 3 . . 1 4 4 1 7 . 1 Heat Flow Errors 8 | . . . 1 . . . 4 . 1 1 . 1 Energy Discharges 10 | . . . 1 . . . 3 . 3 3 . . Parts Rejected 3 | . . . . . . . 3 . . . . . Parts Fused 3 | . . . . . . . . 1 2 . . . Data Loss (minor) 12 | . . . 1 . . . 2 1 3 4 1 . Data Loss (major) 7 | . . . . . . . 1 . 2 2 2 . Misfires 4 | . . . 2 . . . 1 . 1 . . . Misdirections 2 | . . . . . . . . . . 1 1 . Weapon Failures 1 | . . . . . . . 1 . . . . . Overload Shots . | . . . . . . . . . . . . . Overflow Damage 250 | . . . 13 11 . . 52 . 15 36 123 . Projectiles 24 | . . . 13 7 . . . . 4 . . . Explosions 67 | . . . . 4 . . 52 . 11 . . . Melee 159 | . . . . . . . . . . 36 123 . Knockbacks 13 | . . . 4 9 . . . . . . . . Impact . | . . . . . . . . . . . . . Kinetic 12 | . . . 4 8 . . . . . . . . Secondary 1 | . . . . 1 . . . . . . . . Self-Inflicted Damage 88 | . . . . 14 . . 47 14 13 . . . Shots 4 | . . . . 1 . . 1 1 1 . . . Rammed 7 | . . . 2 2 . . . 3 . . . . Targets Rammed 8 | . . . 2 3 . . . 3 . . . . Kicked . | . . . . . . . . . . . . . Crushed 1 | . . . . 1 . . . . . . . . Highest Temperature 261 | . 12 105 179 141 . 15 261 102 261 237 . 106 Average Temperature 47 | . 6 63 41 38 . 9 41 35 43 102 . 69 Received Heat Transfer 3603 | . 72 180 594 891 . 72 375 114 516 657 90 42 Siege Activations . | . . . . . . . . . . . . . Robots Corrupted 1 | . . . . . . . . . . . 1 . Combat Hostiles 1 | . . . . . . . . . . . 1 . Parts Fried 4 | . . . . . . . . . . . 4 . Impact Corruptions 4 | . . . . . . . . . . 1 3 . Robots Melted 3 | . . . . . . . 2 . . 1 . . Combat Hostiles 3 | . . . . . . . 2 . . 1 . . Parts Melted 7 | . . . . . . . 4 . . 1 2 . Heat Transferred 6578 | . . . 1258 481 . . 1702 259 1457 1371 . 50 Parts Sabotaged . | . . . . . . . . . . . . . Parts Stolen . | . . . . . . . . . . . . . Parts Stripped . | . . . . . . . . . . . . . Power Chain Reactions . | . . . . . . . . . . . . . Alert | -11 -10 -10 -9 -8 -7 -7 -7 -6 -6 -6 -6 -6 ------- Run | Yrd Mat Min Mat Mat Fac DSF Gar Fac Ext Cet Arc Hub Peak Influence 1096 | 15 327 114 422 528 240 233 1096 756 407 80 65 99 Initial 575 | . 9 84 44 164 240 63 174 575 263 44 . 18 Average 290 | 4 121 111 296 272 174 141 688 588 181 57 15 35 Maximum Alert Level 3 | . 1 . 2 2 1 1 3 3 2 . . . Low Security (%) 41 | 100 70 100 10 25 43 73 3 . 52 100 100 100 Level 1 35 | . 29 . 87 60 56 26 17 . 43 . . . Level 2 13 | . . . 2 13 . . 10 97 4 . . . Level 3 9 | . . . . . . . 67 2 . . . . Level 4 . | . . . . . . . . . . . . . Level 5 . | . . . . . . . . . . . . . High Security . | . . . . . . . . . . . . . Max Security . | . . . . . . . . . . . . . Sterilizations 1 | . . . . . . 1 . . . . . . Squads Dispatched 17 | . 1 . 5 5 . 1 . 2 1 1 . 1 Investigation 6 | . 1 . 2 1 . . . . 1 1 . . Extermination 2 | . . . . . . . . 2 . . . . Reinforcement 9 | . . . 3 4 . 1 . . . . . 1 Assault . | . . . . . . . . . . . . . Garrison . | . . . . . . . . . . . . . Intercept . | . . . . . . . . . . . . . Searches Triggered . | . . . . . . . . . . . . . Construction Impeded 1 | . . . . 1 . . . . . . . . Haulers Reinforced . | . . . . . . . . . . . . . Active Scanning Responses . | . . . . . . . . . . . . . Cargo Convoy Interrupts 1 | . . . . . . . . 1 . . . . Stealth | -11 -10 -10 -9 -8 -7 -7 -7 -6 -6 -6 -6 -6 --------- Run | Yrd Mat Min Mat Mat Fac DSF Gar Fac Ext Cet Arc Hub Distress Signals 11 | . . . 6 . . . . . 1 1 . 3 Communications Jammed . | . . . . . . . . . . . . . Distress Signals . | . . . . . . . . . . . . . Times Spotted 186 | . 19 5 37 35 . 9 24 6 26 11 4 10 Peak Tracking Total 8 | . 3 3 8 6 . 4 8 4 6 5 2 7 Tactical Retreats 9 | . 1 . . 4 . . 2 1 . . . 1 Traps | -11 -10 -10 -9 -8 -7 -7 -7 -6 -6 -6 -6 -6 ------- Run | Yrd Mat Min Mat Mat Fac DSF Gar Fac Ext Cet Arc Hub Traps Triggered 4 | . . . 2 1 . . . . 1 . . . Indirectly . | . . . . . . . . . . . . . Trap Hack Attempts . | . . . . . . . . . . . . . Triggered . | . . . . . . . . . . . . . Disarmed . | . . . . . . . . . . . . . Reprogrammed 6 | . . . . . . . . . 6 . . . Reused 3 | . . . . . . . . . 3 . . . Traps Extracted . | . . . . . . . . . . . . . Installed . | . . . . . . . . . . . . . Triggered 5 | . . . . . . . . 2 3 . . . Machines | -11 -10 -10 -9 -8 -7 -7 -7 -6 -6 -6 -6 -6 ---------- Run | Yrd Mat Min Mat Mat Fac DSF Gar Fac Ext Cet Arc Hub Machines Disabled 17 | . . . 4 . . 2 6 . 3 2 . . Max in Single Turn 1 | . . . 1 . . 1 1 . 1 1 . . Garrison Relay 3 | . . . . . . . 3 . . . . . Machines Repaired . | . . . . . . . . . . . . . Machines Dismantled 3 | . . . . . . . . . 2 1 . . Machines Sabotaged . | . . . . . . . . . . . . . Overloaded Fab Kills . | . . . . . . . . . . . . . Hacking | -11 -10 -10 -9 -8 -7 -7 -7 -6 -6 -6 -6 -6 --------- Run | Yrd Mat Min Mat Mat Fac DSF Gar Fac Ext Cet Arc Hub Machines Accessed 30 | . 4 . 7 4 3 . 1 2 6 2 . 1 Terminals 26 | . 4 . 6 4 2 . 1 . 6 2 . 1 Fabricators 1 | . . . . . . . . 1 . . . . Repair Stations 1 | . . . . . . . . 1 . . . . Recycling Units . | . . . . . . . . . . . . . Scanalyzers 2 | . . . 1 . 1 . . . . . . . Garrison Access . | . . . . . . . . . . . . . Total Hacks 76 | . 10 . 19 11 6 . 1 5 16 6 . 2 Successful 34 | . 4 . 4 6 2 . 1 5 10 2 . . Failed 42 | . 6 . 15 5 4 . . . 6 4 . 2 Catastrophic 9 | . 2 . 5 . . . . . . 2 . . Database Lockouts . | . . . . . . . . . . . . . Manual 23 | . 5 . 13 5 . . . . . . . . Terminals 65 | . 10 . 15 11 4 . 1 . 16 6 . 2 Fabricators 3 | . . . . . . . . 3 . . . . Repair Stations 2 | . . . . . . . . 2 . . . . Recycling Units . | . . . . . . . . . . . . . Scanalyzers 6 | . . . 4 . 2 . . . . . . . Garrison Access . | . . . . . . . . . . . . . Terminal Hacks 27 | . 4 . 2 6 2 . 1 . 10 2 . . Record 3 | . 1 . . . . . . . . 2 . . Part Schematic 2 | . 1 . . 1 . . . . . . . . Prototype ID Bank 3 | . . . . 1 . . . . 2 . . . Open DSF 1 | . . . . . 1 . . . . . . . Level Access Points 1 | . . . . 1 . . . . . . . . Branch Access Points 3 | . 1 . 1 1 . . . . . . . . Scanalyzer Index 1 | . . . . . . . . . 1 . . . Alert Level 1 | . . . . . . . . . 1 . . . Unreport Threat 1 | . . . . . 1 . . . . . . . Locate Traps 5 | . . . 1 1 . . . . 3 . . . Reprogram Traps 1 | . . . . . . . . . 1 . . . Dispatch Records 1 | . . . . 1 . . . . . . . . Registered Components 2 | . 1 . . . . . . . 1 . . . Zone Layout 1 | . . . . . . . . . 1 . . . Patrol Navigation 1 | . . . . . . . 1 . . . . . Fabricator Hacks 3 | . . . . . . . . 3 . . . . Network Status 1 | . . . . . . . . 1 . . . . Load Schematic 1 | . . . . . . . . 1 . . . . Build 1 | . . . . . . . . 1 . . . . Repair Station Hacks 2 | . . . . . . . . 2 . . . . Scan Component 1 | . . . . . . . . 1 . . . . Repair 1 | . . . . . . . . 1 . . . . Recycling Unit Hacks . | . . . . . . . . . . . . . Scanalyzer 2 | . . . 2 . . . . . . . . . Insert Component 1 | . . . 1 . . . . . . . . . Analyze 1 | . . . 1 . . . . . . . . . Garrison Access Hacks . | . . . . . . . . . . . . . Unauthorized Hacks . | . . . . . . . . . . . . . Terminals . | . . . . . . . . . . . . . Fabricators . | . . . . . . . . . . . . . Repair Stations . | . . . . . . . . . . . . . Recycling Units . | . . . . . . . . . . . . . Scanalyzers . | . . . . . . . . . . . . . Garrison Access . | . . . . . . . . . . . . . Data Cores Recovered 2 | . . . 1 . . . . . 1 . . . Used 1 | . . . . . . . . . 1 . . . Hacking Detections 28 | . 4 . 7 4 3 . 1 . 6 2 . 1 Full Trace Events 6 | . 1 . 2 1 . . . . 1 1 . . Feedback Events 1 | . 1 . . . . . . . . . . . Corruption 1 | . 1 . . . . . . . . . . . Feedback Blocked . | . . . . . . . . . . . . . Robot Schematics Acquired . | . . . . . . . . . . . . . Robots Built 3 | . . . . . . . . 3 . . . . Authchips 1 | . . . . . . . . 1 . . . . Time 152 | . . . . . . . . 152 . . . . Total Robot Build Rating 15 | . . . . . . . . 15 . . . . Part Schematics Acquired 3 | . 1 . 1 1 . . . . . . . . Parts Built . | . . . . . . . . . . . . . Authchips . | . . . . . . . . . . . . . Time . | . . . . . . . . . . . . . Total Part Build Rating . | . . . . . . . . . . . . . Parts Repaired 1 | . . . . . . . . 1 . . . . Time 19 | . . . . . . . . 19 . . . . Parts Recycled . | . . . . . . . . . . . . . Recycled Matter . | . . . . . . . . . . . . . Retrieved Matter . | . . . . . . . . . . . . . Retrieved Components . | . . . . . . . . . . . . . Parts Scanalyzed 1 | . . . 1 . . . . . . . . . Part Schematics Acquired 1 | . . . 1 . . . . . . . . . Parts Damaged . | . . . . . . . . . . . . . Bothacking | -11 -10 -10 -9 -8 -7 -7 -7 -6 -6 -6 -6 -6 ------------ Run | Yrd Mat Min Mat Mat Fac DSF Gar Fac Ext Cet Arc Hub Used RIF Installer . | . . . . . . . . . . . . . Robots Hacked . | . . . . . . . . . . . . . Non-combat . | . . . . . . . . . . . . . Combat . | . . . . . . . . . . . . . Robot Hacks Applied . | . . . . . . . . . . . . . Relay Couplers Released 11 | . . . . . . . 11 . . . . . Machine Destruction 11 | . . . . . . . 11 . . . . . Fabnet Peak Effective % . | . . . . . . . . . . . . . Robots Rewired . | . . . . . . . . . . . . . Allies Hacked 1 | . . . . . . . . 1 . . . . Hacks Repelled . | . . . . . . . . . . . . . Allies | -11 -10 -10 -9 -8 -7 -7 -7 -6 -6 -6 -6 -6 -------- Run | Yrd Mat Min Mat Mat Fac DSF Gar Fac Ext Cet Arc Hub Total Allies 4 | . . . . . . . . 3 1 . . . Largest Group 3 | . . . . . . . . 3 3 . . . Highest-Rated Group 87 | . . . . . . . . 87 87 . . . Highest-Rated Ally 29 | . . . . . . . . 29 29 . . . Total Orders 2 | . . . . . . . . . 2 . . . STAY 1 | . . . . . . . . . 1 . . . FOLLOW 1 | . . . . . . . . . 1 . . . Ally Attacks 29 | . . . . . . . . 19 10 . . . Total Damage 417 | . . . . . . . . 303 114 . . . Kills 5 | . . . . . . . . 3 2 . . . Allies Corrupted . | . . . . . . . . . . . . . Allies Melted . | . . . . . . . . . . . . . Intel | -11 -10 -10 -9 -8 -7 -7 -7 -6 -6 -6 -6 -6 ------- Run | Yrd Mat Min Mat Mat Fac DSF Gar Fac Ext Cet Arc Hub Robot Analysis Total . | . . . . . . . . . . . . . Derelict Logs Recovered 1 | . . 1 . . . . . . . . . . Drone Launches . | . . . . . . . . . . . . . Drone Recoveries . | . . . . . . . . . . . . . Exploration | -11 -10 -10 -9 -8 -7 -7 -7 -6 -6 -6 -6 -6 ------------- Run | Yrd Mat Min Mat Mat Fac DSF Gar Fac Ext Cet Arc Hub Turns Passed 9538 | 224 532 329 1475 1167 271 541 1264 945 1668 804 148 170 Spaces Moved 4093 | 117 245 175 578 328 165 139 602 427 660 321 61 275 Core 333 | 10 . . . . . . . . . 6 42 275 Treads 3523 | 107 245 175 578 328 165 139 602 427 660 97 . . Legs 237 | . . . . . . . . . . 218 19 . Wheels . | . . . . . . . . . . . . . Hover . | . . . . . . . . . . . . . Flight . | . . . . . . . . . . . . . Fastest Speed 50 | 50 160 160 160 240 160 168 164 164 162 50 50 50 Average Speed 176 | 153 160 161 182 240 160 225 165 173 210 199 96 50 Slowest Speed 480 | 160 160 240 240 240 160 250 166 244 244 480 150 50 Overloaded Moves . | . . . . . . . . . . . . . Propulsion Burnouts . | . . . . . . . . . . . . . Robots Hopped . | . . . . . . . . . . . . . Cave-ins Triggered . | . . . . . . . . . . . . . Exploration Rate (%) 45 | 7 45 48 68 29 5 77 68 10 69 77 62 21 Regions Visited 12 Branch Regions 5 Pre-discovered Areas . | . . . . . . . . . . . . . Known Exits Taken 8 | . 1 . 1 1 1 . . 1 1 1 1 . Unknown Exits Taken 2 | 1 . 1 . . . . . . . . . . Scrap Searched 1 | . . 1 . . . . . . . . . . Spaces Dug 10 | . . . 1 4 . . . 3 . . 2 . Terrain Destroyed 240 | . . . 47 55 . 5 19 23 39 49 2 1 Melee 7 | . . . 1 4 . . . . . . 2 . Projectile 8 | . . . 1 2 . . . 3 1 . . 1 AOE 225 | . . . 45 49 . 5 19 20 38 49 . . Terrain Rammed . | . . . . . . . . . . . . . Walls Destroyed . | . . . . . . . . . . . . . Machines Disabled . | . . . . . . . . . . . . . Actions | -11 -10 -10 -9 -8 -7 -7 -7 -6 -6 -6 -6 -6 --------- Run | Yrd Mat Min Mat Mat Fac DSF Gar Fac Ext Cet Arc Hub Total 5453 | 142 326 199 842 552 172 251 743 611 792 404 117 302 Wait 399 | . 18 2 103 67 . . 32 125 13 . 29 10 Move 4080 | 116 244 174 577 327 164 138 600 426 659 320 60 275 Hop . | . . . . . . . . . . . . . Pick Up 121 | 9 12 4 22 23 3 12 4 12 10 5 1 4 Fast Attach 33 | 4 . . 5 5 . 5 3 5 2 3 . 1 Attach 71 | 2 1 2 8 10 2 4 2 3 12 18 3 4 Detach 6 | . . . . . . . . . . 4 1 1 Swap 114 | . 6 1 21 21 2 12 14 8 19 7 1 2 Drop 89 | . 7 2 16 19 1 15 4 15 4 5 . 1 Fire 448 | 11 38 14 86 68 . 38 84 14 55 28 8 4 Melee 57 | . . . 2 9 . 27 . . . 5 14 . Ram . | . . . . . . . . . . . . . Kick . | . . . . . . . . . . . . . Crush 8 | . . . 2 3 . . . 3 . . . . Escape Stasis 2 | . . . . . . . . . 2 . . . Rewire . | . . . . . . . . . . . . . Trap . | . . . . . . . . . . . . . Miscellaneous 25 | . . . . . . . . . 16 9 . . Route ------- -11/Scrapyard -10/Materials (discovered 2 exits: *Mat / *Min) -10/Mines (discovered 2 exits: *Mat x2) -9/Materials (discovered 3 exits: *Mat / *Min x2) -8/Materials (discovered 3 exits: *Fac x3) -7/Factory (discovered 2 exits: *Fac / DSF) -7/DSF -7/Garrison (discovered 2 exits: *Fac x2) -6/Factory -6/Extension (discovered 3 exits: *Fac x2 / *Cet) -6/Cetus -6/Archives -6/Hub_04(d) History --------- Turn | Location | Event 11 | -11/Scrapyard | Discovered new exit (range 16) 225 | -11/Scrapyard | Entered Materials 318 | -10/Materials | Build established: Mutant 393 | -10/Materials | Discovered new exit (range 5) 542 | -10/Materials | Discovered new exit (range 12) 601 | -10/Materials | Identified exit to Mines 757 | -10/Materials | Entered Mines 786 | -10/Mines | Core integrity fell below 50% 939 | -10/Mines | Learned 2 Materials zone layouts 981 | -10/Mines | Received a Rocket Launcher from a helpful Derelict 1067 | -10/Mines | Discovered new exit (range 10) 1078 | -10/Mines | Discovered new exit (range 9) 1086 | -10/Mines | Entered Materials 1086 | -9/Materials | Evolved 2 slots: Propulsion x1, Utility x1 1107 | -9/Materials | Build established: Scavenger-Mutant 1290 | -9/Materials | Lost 3 parts (1n2u) 1648 | -9/Materials | Discovered new exit (range 5) 1955 | -9/Materials | Discovered new exit (range 15) 2283 | -9/Materials | Identified exit to Mines 2559 | -9/Materials | Identified exit to Materials 2561 | -9/Materials | Entered another Materials area 2561 | -8/Materials | Evolved 2 slots: Propulsion x1, Utility x1 2957 | -8/Materials | Identified exit to Factory 3151 | -8/Materials | Lost 5 parts (4n1w) 3570 | -8/Materials | Lost 3 parts (1n2w) 3623 | -8/Materials | Core integrity fell below 50% 3728 | -8/Materials | Entered Factory 3728 | -7/Factory | Evolved 2 slots: Propulsion x1, Utility x1 3809 | -7/Factory | Discovered new exit (range 15) 3832 | -7/Factory | Identified exit to Factory 3998 | -7/Factory | Identified exit to DSF 3999 | -7/Factory | Entered DSF 4213 | -7/DSF | Additional patrols routed to DSF 4357 | -7/DSF | Discovered new exit (range 14) 4442 | -7/DSF | Sterilization system engaged 4462 | -7/DSF | Ambient heat levels rising (+10) 4477 | -7/DSF | Ambient heat levels rising (+10) 4478 | -7/DSF | Identified exit to Garrison 4492 | -7/DSF | Ambient heat levels rising (+10) 4507 | -7/DSF | Ambient heat levels rising (+10) 4522 | -7/DSF | Ambient heat levels rising (+10) 4537 | -7/DSF | Ambient heat levels rising (+10) 4540 | -7/DSF | Entered Garrison 4671 | -7/Garrison | Build established: Mutant 4678 | -7/Garrison | Triggered checkpoint 4706 | -7/Garrison | Garrison Relay disabled 4792 | -7/Garrison | Triggered checkpoint 4813 | -7/Garrison | Triggered checkpoint 4836 | -7/Garrison | Destroyed 9 combat bots 4898 | -7/Garrison | Triggered checkpoint 4937 | -7/Garrison | Triggered checkpoint 5045 | -7/Garrison | Discovered exit to Factory (range 15) 5278 | -7/Garrison | Triggered checkpoint 5400 | -7/Garrison | Attempted to access garrison exit controls, blocked by remote lockdown 5473 | -7/Garrison | Garrison Relay disabled 5666 | -7/Garrison | Triggered checkpoint 5714 | -7/Garrison | Garrison Relay disabled 5793 | -7/Garrison | Discovered exit to Factory (range 8) 5804 | -7/Garrison | Entered Factory 5804 | -6/Factory | Evolved 2 slots: Utility x1, Weapon x1 6121 | -6/Factory | Fabricated G-50 Soldier (x3) 6287 | -6/Factory | Repaired Arm. Treads 6499 | -6/Factory | Cargo convoy interrupted 6558 | -6/Factory | Build established: Skirmisher 6722 | -6/Factory | Discovered new exit (range 10) 6744 | -6/Factory | Identified exit to Extension 6749 | -6/Factory | Entered Extension 6749 | -6/Extension | Accompanied by 3 allies 6786 | -6/Extension | Disrupted transfer network 6955 | -6/Extension | Build established: Scavenger-Gunner 7012 | -6/Extension | Spotted B-75 Beast 7094 | -6/Extension | Lost 3 allies 7675 | -6/Extension | Rescued a captive Derelict 7805 | -6/Extension | Build established: Scavenger-Skirmisher 8043 | -6/Extension | Spotted B-75 Beast 8071 | -6/Extension | Destroyed B-75 Beast 8123 | -6/Extension | Destroyed B-75 Beast 8149 | -6/Extension | Lost 7 parts (1p3n1u2w) 8210 | -6/Extension | Discovered new exit (range 3) 8213 | -6/Extension | Identified exit to Factory 8215 | -6/Extension | System corruption reached 10% 8375 | -6/Extension | Discovered new exit (range 15) 8377 | -6/Extension | Discovered exit to Factory (range 15) 8399 | -6/Extension | Identified exit to Cetus 8417 | -6/Extension | Entered Cetus 8438 | -6/Cetus | Spotted Cetus Guard 8438 | -6/Cetus | Spotted Cetus Guard 8445 | -6/Cetus | Spotted Cetus Guard 8457 | -6/Cetus | Spotted Cetus Guard 8464 | -6/Cetus | Destroyed Cetus Guard 8483 | -6/Cetus | Destroyed Cetus Guard 8494 | -6/Cetus | Destroyed Cetus Guard 8505 | -6/Cetus | Destroyed Cetus Guard 8525 | -6/Cetus | Lost 9 parts (4n1u4w) 8926 | -6/Cetus | Lost 8 parts (1p1n4u2w) 9076 | -6/Cetus | Discovered new exit (range 16) 9115 | -6/Cetus | Identified exit to Archives 9167 | -6/Cetus | Security sweep announced 9204 | -6/Cetus | Core integrity fell below 50% 9220 | -6/Cetus | Build established: Scavenger-Mutant 9221 | -6/Cetus | Entered Archives 9236 | -6/Archives | Lost 5 parts (1p1n1u2w) 9330 | -6/Archives | Core integrity fell below 20% 9358 | -6/Archives | Unable to access archive contents 9361 | -6/Archives | Discovered new exit (range 16) 9369 | -6/Archives | Identified exit to Hub_04(d) 9369 | -6/Archives | Entered Hub_04(d) 9539 | -6/Hub_04(d) | Destroyed by Y-54 Guardian with Gatling Laser Last Messages --------------- 09466_ Acquired Gatling Laser. 09482_ ALERT: Security rotation in progress. 09490_ O-16 Technician: "IFF HANDSHAKE FAILED. SECURING TERMINAL." 09493_ System corrupted: Heat flow error (+143). 09503_ ALERT: Hostiles spotted, dispatching reinforcements to Terminal H004. 09518_ System corrupted: Matter fused (-10). 09530_ Slug penetrates Y-54 Guardian. 09531_ K-01 Serf collects debris. 09532_ W-25 Informer sends out distress signal. 09532_ U-05 Engineer builds a Wall. 09532_ Slug penetrates A-15 Conveyor. 09534_ A-15 Conveyor sends out distress signal. 09534_ Slug penetrates Y-54 Guardian. 09536_ RAIBUIUT5|QI|KADXK5UV3I%H 09536_ K-01 Serf destroyed. 09538_ Slug penetrates Y-54 Guardian. 09538_ K-01 Serf destroyed. 09539_ Penetrated by Slug. Map ----- +----------------------------------------------------+ | ## ! #????????????????????????????????????? | | ## #????????????????????????????????????? | | ## #????????????????????????????????????? | | ###+#####################????????????????????? | | " + ###########??????????? | | "" + # #??????????? | | " ###+##### ########## # #??????????? | | #? ???# # # # #??????????? | | ## ""???# # " " T # # #??????????? | | ## ??# # " " + + #??????????? | | ## """??# # " " # # #??????????? | | #+#### ?# # # # #??????????? | | #??# """ ?# ########## # #??????????? | | #??# ## ########## ###########??????????? | | ########### w #????????????????????? | | #????????????????????? | | ####/#####+##+###########Y #????????????????????? | | # ???????????# #????????????????????? | | # ???????#?# #????????????????????? | | " """" # """ ???????# #??? ????????????????? | | " """" # ?#???# k#????????????????????? | | " """" # """ """ #???# #????????????????????? | | " """" # #???# = #????????????????????? | | # """ """ #???#=% #????????????????????? | | " """" # ?#???# * #????????????????????? | | " """" + """ "????????#@ #????????????????????? | | " """" # ?????# #????????????????????? | | " """" # """ """ #???# #????????????????????? | | # ???????# #????????????????????? | | #+####+####???##????????#*t +????????????????????? | | # #??# #????????????????#%= # ???????????????????? | | # #??# #????????????????#AY # ??????????????????? | | #+####### #?????????????# %=#? ?????????????????? | | #?????????????#k= #??##????????????????? | | #????????????? ]????????????????????? | | """" #????????????? hu ????????????????????? | | """" #????????????? #???????????????????? | | """" #????????????? #???????????????????? | | """" #????????????? #???????????????????? | | "" #?????????????##h###???????????????????? | | """?? "" #??????????????? ?????????????????????? | | ?????? T" #??????????????????????????????????????? | | ?????????????????????????????????????????????????? | | ?????????????????????????????????????????????????? | | ?????????????????????????????????????????????????? | | ?????????????????????????????????????????????????? | | ?????????????????????????????????????????????????? | | ?????????????????????????????????????????????????? | | ?????????????????????????????????????????????????? | | ?????????????????????????????????????????????????? | +----------------------------------------------------+ Best States ------------- Heat Dissipation 70 Energy Generation 18 Energy Capacity 300 Matter Stores 300 Matter Capacity 300 Sight Range 16 Robot Scan Range 16 Terrain Scan Range 16 Terrain Scan Density 10 Armor Coverage 450 Weapon Cycling 15 Evasion (%) 55 Targeting Accuracy 5 Target Analysis 6 Recoil Reduction 5 Offensive Hacking 20 Defensive Hacking 12 Authchip Count 1 Item Schematics ----------------- Signal Interpreter | -10/Materials | Hacked Sensor Array | -9/Materials | Scanalyzed Imp. Sensor Array | -8/Materials | Hacked Robot Schematics ------------------ None Fabricated ------------ G-50 Soldier | x3 | -6/Factory | Preloaded, Authchip Alien Tech Used ----------------- None Achievements -------------- None Challenges ------------ None Game ------ Seed NuclearAlertWeb Manual? 0 Play Time 02:17:41 Cumulative 77.1 hours Start 2025.03.18 @ 22:48:22 End 2025.03.20 @ 00:10:56 Sessions 5 Manual Loads 0 Difficulty Rogue Special Mode None Game No. 28 Rogue 28 Adventurer 0 Explorer 0 Win Type - Total 1 Types 1/0/0/0/0/0/0/0/0 Lore% 31 Gallery% 46 Achievement% 38 Wizard Run 0 Options --------- Layout 1 ASCII 0 Keyboard 0 Movement Mouse Keybinds 0 Fullscreen 1 Font 32/SmallcapsGlow Map View 50x35 Zoom Use 0% Tactical HUD 1 Map Filters NONE Filters NONE Steam 1 RUN: 6c9e3306-7b94-4b88-97f8-d562217f456e